fUST/lending_fUST_20240229
["ID","MTS","AMOUNT","RATE_DAILY","PERIOD"]
[315818742,1709191839093,-500.0,0.00019178,2]
[315818744,1709191839103,-500.0,0.00019178,2]
[315818746,1709191839112,-500.0,0.00019178,2]
[315818747,1709191839122,-500.0,0.00019178,2]
[315818748,1709191839131,-675.68,0.00019178,2]
[315818749,1709191839140,-500.0,0.00019178,2]
[315818750,1709191839149,-313.79452953,0.00019178,2]
[315818751,1709191839159,-500.0,0.00019178,2]
[315818752,1709191839168,-810.82,0.00019178,2]
[315818753,1709191839177,-500.0,0.00019178,2]
[315818754,1709191839186,-500.0,0.00019178,2]
[315818755,1709191839195,-502.39169831,0.00019178,2]
[315818756,1709191839204,-500.0,0.00019178,2]
[315818757,1709191839213,-500.0,0.00019178,2]
[315818758,1709191839222,-500.0,0.00019178,2]
[315818759,1709191839232,-500.0,0.00019178,2]
[315818760,1709191839241,-3869.39,0.00019178,2]
[315818761,1709191839250,-500.0,0.00019178,2]
[315818762,1709191839260,-1379.73,0.00019178,2]
[315818763,1709191839269,-500.0,0.00019178,2]
[315818764,1709191839278,-500.0,0.00019178,2]
[315818765,1709191839287,-500.0,0.00019178,2]
[315818766,1709191839296,-500.0,0.00019178,2]
[315818767,1709191839306,-500.0,0.00019178,2]
[315818768,1709191839315,-500.0,0.00019178,2]
[315818769,1709191839325,-500.0,0.00019178,2]
[315818770,1709191839334,-500.0,0.00019178,2]
[315818771,1709191839345,-500.0,0.00019178,2]
[315818772,1709191839354,-818.15,0.00019178,2]
[315818773,1709191839364,-500.0,0.00019178,2]
[315818774,1709191839374,-500.0,0.00019178,2]
[315818775,1709191839383,-2011.76509741,0.00019178,2]
[315818776,1709191839396,-1457.52490259,0.00019178,2]
[315818777,1709191839405,-500.0,0.00019178,2]
[315818778,1709191839414,-285.25524474,0.00019178,2]
[315818779,1709191839425,-341.27927186,0.00019178,2]
[315818780,1709191839435,-500.0,0.00019178,2]
[315818781,1709191839445,-500.0,0.00019178,2]
[315818782,1709191839454,-500.0,0.00019178,2]
[315818783,1709191839463,-500.0,0.00019178,2]
[315818784,1709191839472,-2154.39,0.00019178,2]
[315818785,1709191839482,-564.2263334,0.00019178,2]
[315818786,1709191839491,-500.0,0.00019178,2]
[315818787,1709191839500,-165.138624,0.00019178,2]
[315818788,1709191839509,-166.666666,0.00019178,2]
[315818789,1709191839518,-154.1657352,0.000194,2]
[315818790,1709191839527,-500.0,0.00019449,2]
[315818791,1709191839536,-500.0,0.00019449,2]
[315818792,1709191839546,-500.0,0.00019449,2]
[315818793,1709191839555,-500.0,0.00019449,2]
[315818794,1709191839563,-500.91745641,0.00019449,2]
[315818795,1709191839572,-500.0,0.00019449,2]
[315818796,1709191839581,-431.86055815,0.00019449,2]
[315818797,1709191839622,-68.13944185,0.00019449,2]
[315818798,1709191839631,-500.0,0.00019449,2]
[315818799,1709191839640,-500.0,0.00019449,2]
[315818800,1709191839650,-500.0,0.00019449,2]
[315818801,1709191839659,-500.0,0.00019449,2]
[315818802,1709191839668,-500.0,0.00019449,2]
[315818803,1709191839677,-500.0,0.00019449,2]
[315818804,1709191839687,-501.68710773,0.00019449,2]
[315818805,1709191839697,-500.0,0.00019449,2]
[315818806,1709191839706,-175.78279526,0.00019449,2]
[315818807,1709191839715,-504.44467866,0.00019449,2]
[315818808,1709191839726,-402.38428962,0.00019449,2]
[315818809,1709191839735,-500.0,0.00019449,2]
[315818810,1709191839744,-501.08419367,0.00019449,2]
[315818811,1709191839753,-500.0,0.00019449,2]
[315818812,1709191839763,-500.0,0.00019449,2]
[315818813,1709191839772,-500.0,0.00019449,2]
[315818814,1709191839780,-500.0,0.00019449,2]
[315818815,1709191839790,-500.0,0.00019449,2]
[315818816,1709191839800,-500.0,0.00019449,2]
[315818817,1709191839809,-500.0,0.00019449,2]
[315818818,1709191839818,-500.44956015,0.00019449,2]
[315818819,1709191839827,-500.0,0.00019449,2]
[315818820,1709191839837,-500.0,0.00019449,2]
[315818821,1709191839848,-500.0,0.00019449,2]
[315818822,1709191839858,-500.0,0.00019449,2]
[315818823,1709191839868,-500.82491466,0.00019449,2]
[315818824,1709191839877,-500.80513381,0.00019449,2]
[315818825,1709191839886,-500.0,0.00019449,2]
[315818826,1709191839895,-500.61994642,0.00019449,2]
[315818827,1709191839904,-500.0,0.00019449,2]
[315818828,1709191839913,-500.0,0.00019449,2]
[315818829,1709191839922,-500.0,0.00019449,2]
[315818830,1709191839932,-500.0,0.00019449,2]
[315818831,1709191839943,-503.76918573,0.00019449,2]
[315818832,1709191839952,-500.0,0.00019449,2]
[315818833,1709191839962,-500.0,0.00019449,2]
[315818834,1709191839972,-505.0,0.00019449,2]
[315818835,1709191839982,-500.0,0.00019449,2]
[315818836,1709191839991,-500.0,0.00019449,2]
[315818837,1709191840000,-500.0,0.00019449,2]
[315818838,1709191840010,-500.0,0.00019449,2]
[315818839,1709191840019,-500.0,0.00019449,2]
[315818840,1709191840028,-500.0,0.00019449,2]
[315818841,1709191840038,-500.0,0.00019449,2]
[315818842,1709191840047,-500.0,0.00019449,2]
[315818843,1709191840056,-500.0,0.00019449,2]
[315818844,1709191840066,-500.39586929,0.00019449,2]
[315818845,1709191840075,-260.04750707,0.00019449,2]
[315818846,1709191840084,-500.0,0.00019449,2]
[315818847,1709191840094,-500.0,0.00019449,2]
[315818848,1709191840103,-500.0,0.00019449,2]
[315818849,1709191840113,-500.0,0.00019449,2]
[315818850,1709191840122,-500.0,0.00019449,2]
[315818851,1709191840131,-500.0,0.00019449,2]
[315818852,1709191840140,-502.71268128,0.00019449,2]
[315818853,1709191840149,-500.0,0.00019449,2]
[315818854,1709191840158,-379.90449438,0.00019449,2]
[315818855,1709191840167,-379.01528578,0.00019449,2]
[315818856,1709191840177,-500.0,0.00019449,2]
[315818857,1709191840186,-500.0,0.00019449,2]
[315818858,1709191840195,-500.0,0.00019449,2]
[315818859,1709191840204,-500.0,0.00019449,2]
[315818860,1709191840213,-500.0,0.00019449,2]
[315818861,1709191840223,-500.0,0.00019449,2]
[315818862,1709191840232,-500.0,0.00019449,2]
[315818863,1709191840243,-500.0,0.00019449,2]
[315818864,1709191840252,-500.0,0.00019449,2]
[315818865,1709191840261,-500.0,0.00019449,2]
[315818866,1709191840270,-500.0,0.00019452,2]
[315818867,1709191840280,-500.0,0.00019452,2]
[315818868,1709191840289,-500.0,0.00019452,2]
[315818869,1709191840298,-500.0,0.00019452,2]
[315818870,1709191840307,-500.0,0.00019452,2]
[315818871,1709191840316,-500.0,0.00019452,2]
[315818872,1709191840326,-500.0,0.00019452,2]
[315818873,1709191840335,-500.86235508,0.00019452,2]
[315818874,1709191840346,-500.0,0.00019452,2]
[315818875,1709191840356,-500.0,0.00019452,2]
[315818876,1709191840365,-502.23024181,0.00019452,2]
[315818877,1709191840375,-319.26345912,0.00019452,2]
[315818878,1709191840384,-500.0,0.00019452,2]
[315818879,1709191840392,-502.04637778,0.00019452,2]
[315818881,1709191840478,-500.0,0.00019452,2]
[315818883,1709191840503,-500.0,0.00019452,2]
[315818885,1709191840513,-500.0,0.00019452,2]
[315818887,1709191840523,-500.0,0.00019452,2]
[315818888,1709191840533,-500.0,0.00019452,2]
[315818890,1709191840542,-500.0,0.00019452,2]
[315818892,1709191840552,-500.0,0.00019452,2]
[315818894,1709191840562,-500.0,0.00019452,2]
[315818896,1709191840571,-500.0,0.00019452,2]
[315818898,1709191840580,-500.0,0.00019452,2]
[315818900,1709191840591,-500.0,0.00019452,2]
[315818902,1709191840600,-675.68,0.00019452,2]
[315818904,1709191840610,-500.0,0.00019452,2]
[315818906,1709191840620,-810.82,0.00019452,2]
[315818908,1709191840630,-500.0,0.00019452,2]
[315818910,1709191840639,-500.0,0.00019452,2]
[315818911,1709191840650,-500.0,0.00019452,2]
[315818912,1709191840660,-3869.39,0.00019452,2]
[315818913,1709191840670,-500.0,0.00019452,2]
[315818914,1709191840679,-1379.73,0.00019452,2]
[315818915,1709191840687,-500.0,0.00019452,2]
[315818916,1709191840698,-500.0,0.00019452,2]
[315818917,1709191840707,-500.0,0.00019452,2]
[315818918,1709191840716,-500.0,0.00019452,2]
[315818919,1709191840729,-500.0,0.00019452,2]
[315818920,1709191840738,-500.0,0.00019452,2]
[315818921,1709191840748,-500.0,0.00019452,2]
[315818922,1709191840759,-500.0,0.00019452,2]
[315818923,1709191840770,-500.0,0.00019452,2]
[315818924,1709191840780,-818.15,0.00019452,2]
[315818925,1709191840789,-504.08156979,0.00019452,2]
[315818926,1709191840799,-500.0,0.00019452,2]
[315818927,1709191840808,-3469.29,0.00019452,2]
[315818928,1709191840817,-500.0,0.00019452,2]
[315818929,1709191840826,-500.0,0.00019452,2]
[315818930,1709191840835,-500.0,0.00019452,2]
[315818931,1709191840846,-500.0,0.00019452,2]
[315818932,1709191840856,-2154.39,0.00019452,2]
[315818933,1709191840865,-500.0,0.00019452,2]
[315818934,1709191840874,-155.10236756,0.00019722,2]
[315818935,1709191840883,-500.0,0.00019722,2]
[315818936,1709191840892,-500.0,0.00019723,2]
[315818937,1709191840901,-500.0,0.00019723,2]
[315818938,1709191840911,-601.93171131,0.00019723,2]
[315818939,1709191840920,-500.0,0.00019723,2]
[315818940,1709191840928,-500.0,0.00019723,2]
[315818941,1709191840937,-500.0,0.00019723,2]
[315818942,1709191840948,-500.0,0.00019723,2]
[315818943,1709191840958,-500.0,0.00019723,2]
[315818944,1709191840967,-500.0,0.00019723,2]
[315818945,1709191840976,-183.96946213,0.00019723,2]
[315818946,1709191840985,-491.44717413,0.00019723,2]
[315818947,1709191840994,-500.0,0.00019723,2]
[315818948,1709191841003,-500.0,0.00019723,2]
[315818949,1709191841012,-500.0,0.00019723,2]
[315818950,1709191841022,-500.0,0.00019723,2]
[315818951,1709191841031,-500.0,0.00019723,2]
[315818952,1709191841040,-500.0,0.00019723,2]
[315818953,1709191841049,-589.2876803,0.00019723,2]
[315818954,1709191841059,-500.0,0.00019723,2]
[315818955,1709191841068,-500.0,0.00019723,2]
[315818956,1709191841077,-500.0,0.00019723,2]
[315818957,1709191841087,-387.93424642,0.00019723,2]
[315818958,1709191841097,-500.0,0.00019723,2]
[315818959,1709191841106,-500.0,0.00019723,2]
[315818960,1709191841115,-500.0,0.00019723,2]
[315818961,1709191841124,-500.0,0.00019723,2]
[315818962,1709191841134,-507.5916589,0.00019723,2]
[315818963,1709191841143,-500.0,0.00019723,2]
[315818964,1709191841152,-500.0,0.00019723,2]
[315818965,1709191841162,-500.0,0.00019723,2]
[315818966,1709191841171,-500.0,0.00019723,2]
[315818967,1709191841180,-500.0,0.00019723,2]
[315818968,1709191841189,-500.0,0.00019723,2]
[315818969,1709191841198,-500.0,0.00019723,2]
[315818970,1709191841208,-500.0,0.00019723,2]
[315818971,1709191841216,-500.0,0.00019723,2]
[315818972,1709191841225,-500.0,0.00019723,2]
[315818973,1709191841234,-500.0,0.00019723,2]
[315818974,1709191841243,-500.0,0.00019723,2]
[315818975,1709191841252,-500.0,0.00019723,2]
[315818976,1709191841263,-500.0,0.00019723,2]
[315818977,1709191841272,-500.0,0.00019723,2]
[315818978,1709191841281,-500.0,0.00019723,2]
[315818979,1709191841290,-500.0,0.00019723,2]
[315818980,1709191841299,-504.14893902,0.00019726,2]
[315818981,1709191841308,-500.0,0.00019726,2]
[315818982,1709191841317,-503.80213088,0.00019726,2]
[315818983,1709191841326,-500.0,0.00019726,2]
[315818984,1709191841335,-500.0,0.00019726,2]
[315818985,1709191841346,-500.0,0.00019726,2]
[315818986,1709191841356,-500.0,0.00019726,2]
[315818987,1709191841365,-500.0,0.00019726,2]
[315818988,1709191841374,-500.0,0.00019726,2]
[315818989,1709191841383,-508.32586414,0.00019726,2]
[315818990,1709191841392,-500.0,0.00019726,2]
[315818991,1709191841401,-500.0,0.00019726,2]
[315818992,1709191841411,-500.0,0.00019726,2]
[315818993,1709191841420,-500.0,0.00019726,2]
[315818995,1709191841429,-500.0,0.00019726,2]
[315818997,1709191841438,-500.0,0.00019726,2]
[315818999,1709191841448,-500.0,0.00019726,2]
[315819001,1709191841458,-500.0,0.00019726,2]
[315819003,1709191841467,-500.0,0.00019726,2]
[315819005,1709191841476,-500.0,0.00019726,2]
[315819007,1709191841485,-500.0,0.00019726,2]
[315819009,1709191841494,-675.68,0.00019726,2]
[315819011,1709191841503,-505.26790129,0.00019726,2]
[315819013,1709191841512,-810.82,0.00019726,2]
[315819015,1709191841521,-500.37719553,0.00019726,2]
[315819017,1709191841530,-500.0,0.00019726,2]
[315819019,1709191841539,-500.0,0.00019726,2]
[315819021,1709191841548,-3869.39,0.00019726,2]
[315819023,1709191841557,-500.0,0.00019726,2]
[315819025,1709191841567,-1379.73,0.00019726,2]
[315819027,1709191841576,-500.0,0.00019726,2]
[315819029,1709191841585,-500.0,0.00019726,2]
[315819031,1709191841596,-500.0,0.00019726,2]
[315819033,1709191841606,-500.0,0.00019726,2]
[315819035,1709191841614,-502.45202384,0.00019726,2]
[315819037,1709191841624,-500.0,0.00019726,2]
[315819039,1709191841632,-500.0,0.00019726,2]
[315819041,1709191841641,-629.42,0.00019726,2]
[315819043,1709191841651,-500.0,0.00019726,2]
[315819045,1709191841660,-818.15,0.00019726,2]
[315819047,1709191841669,-500.0,0.00019726,2]
[315819049,1709191841678,-3469.29,0.00019726,2]
[315819051,1709191841687,-500.0,0.00019726,2]
[315819053,1709191841698,-500.0,0.00019726,2]
[315819055,1709191841707,-500.0,0.00019726,2]
[315819057,1709191841717,-500.0,0.00019726,2]
[315819060,1709191841728,-2154.39,0.00019726,2]
[315819062,1709191841741,-500.0,0.00019726,2]
[315819064,1709191841750,-500.0,0.00019996,2]
[315819066,1709191841758,-500.0,0.00019997,2]
[315819067,1709191841768,-500.0,0.00019997,2]
[315819069,1709191841777,-613.68097114,0.00019997,2]
[315819071,1709191841787,-500.0,0.00019997,2]
[315819073,1709191841796,-500.0,0.00019997,2]
[315819075,1709191841807,-500.0,0.00019997,2]
[315819078,1709191841817,-500.0,0.00019997,2]
[315819080,1709191841825,-179.78236095,0.00019997,2]
[315819082,1709191841834,-500.0,0.00019997,2]
[315819083,1709191841844,-500.0,0.00019997,2]
[315819085,1709191841853,-500.0,0.00019997,2]
[315819087,1709191841862,-500.0,0.00019997,2]
[315819089,1709191841872,-527.39049889,0.00019997,2]
[315819092,1709191841881,-593.06453736,0.00019997,2]
[315819094,1709191841890,-500.0,0.00019997,2]
[315819096,1709191841900,-500.0,0.00019997,2]
[315819098,1709191841909,-500.0,0.00019997,2]
[315819100,1709191841918,-501.71211248,0.00019997,2]
[315819101,1709191841927,-500.0,0.00019997,2]
[315819103,1709191841937,-500.0,0.00019997,2]
[315819105,1709191841946,-500.0,0.00019997,2]
[315819107,1709191841956,-500.0,0.00019997,2]
[315819110,1709191841967,-638.12008785,0.00019997,2]
[315819111,1709191841976,-500.0,0.00019997,2]
[315819114,1709191841986,-205.90771637,0.00019997,2]
[315819116,1709191841997,-301.86451415,0.00019997,2]
[315819118,1709191842007,-500.0,0.00019997,2]
[315819120,1709191842016,-500.0,0.00019997,2]
[315819122,1709191842025,-500.0,0.00019997,2]
[315819124,1709191842037,-500.0,0.00019997,2]
[315819126,1709191842046,-500.0,0.00019997,2]
[315819128,1709191842055,-500.0,0.00019997,2]
[315819130,1709191842064,-500.0,0.00019997,2]
[315819132,1709191842073,-500.0,0.00019997,2]
[315819134,1709191842082,-500.0,0.00019997,2]
[315819136,1709191842093,-5500.00264894,0.0002,2]
[315819138,1709191842103,-500.0,0.0002,2]
[315819140,1709191842112,-500.0,0.0002,2]
[315819142,1709191842121,-500.0,0.0002,2]
[315819144,1709191842130,-500.0,0.0002,2]
[315819145,1709191842139,-500.0,0.0002,2]
[315819147,1709191842149,-500.0,0.0002,2]
[315819150,1709191842158,-635.16,0.0002,2]
[315819152,1709191842168,-500.0,0.0002,2]
[315819154,1709191842177,-500.0,0.0002,2]
[315819156,1709191842186,-648.33,0.0002,2]
[315819158,1709191842195,-500.0,0.0002,2]
[315819160,1709191842204,-675.68,0.0002,2]
[315819162,1709191842214,-810.82,0.0002,2]
[315819164,1709191842223,-500.0,0.0002,2]
[315819166,1709191842231,-500.0,0.0002,2]
[315819168,1709191842240,-3869.39,0.0002,2]
[315819170,1709191842249,-500.0,0.0002,2]
[315819171,1709191842258,-1379.73,0.0002,2]
[315819173,1709191842267,-500.0,0.0002,2]
[315819176,1709191842276,-500.0,0.0002,2]
[315819178,1709191842285,-500.0,0.0002,2]
[315819180,1709191842294,-500.0,0.0002,2]
[315819182,1709191842303,-500.0,0.0002,2]
[315819183,1709191842312,-500.0,0.0002,2]
[315819185,1709191842321,-818.15,0.0002,2]
[315819187,1709191842330,-500.0,0.0002,2]
[315819189,1709191842340,-3469.29,0.0002,2]
[315819192,1709191842351,-500.0,0.0002,2]
[315819193,1709191842360,-155.09615962,0.0002,2]
[315819196,1709191842369,-500.0,0.0002,2]
[315819198,1709191842379,-500.0,0.0002,2]
[315819199,1709191842387,-2154.39,0.0002,2]
[315819201,1709191842397,-500.0,0.0002,2]
[315819204,1709191842407,-155.09615962,0.00020183,2]
[315819206,1709191842416,-500.0,0.00020189,2]
[315819208,1709191842425,-1868.1109029,0.0002019,3]
[315819210,1709191842434,-6259.54903162,0.0002019,3]
[315819212,1709191842443,-606.67299265,0.0002019,2]
[315819214,1709191842452,-155.11168041,0.0002019,2]
[315819216,1709191842461,-4508.22647334,0.0002019,3]
[315819218,1709191842470,-20220.66278373,0.0002019,5]
[315819220,1709191842478,-5561.51949397,0.0002019,3]
[315819222,1709191842488,-5000.0,0.0002019,5]
[315819224,1709191842497,-181.68,0.00020271,2]
[315819226,1709191842506,-223.5,0.00020271,2]
[315819228,1709191842515,-500.0,0.00020271,2]
[315819230,1709191842523,-500.0,0.00020271,2]
[315819232,1709191842532,-274.23444574,0.00020271,2]
[315819234,1709191842541,-500.0,0.00020271,2]
[315819236,1709191842550,-500.0,0.00020271,2]
[315819238,1709191842559,-500.0,0.00020271,2]
[315819240,1709191842568,-622.03,0.00020271,2]
[315819242,1709191842578,-500.0,0.00020271,2]
[315819243,1709191842587,-500.0,0.00020271,2]
[315819245,1709191842598,-555.99,0.00020273,2]
[315819247,1709191842607,-336.04,0.00020273,2]
[315819250,1709191842616,-500.0,0.00020273,2]
[315819251,1709191842625,-500.0,0.00020273,2]
[315819254,1709191842635,-500.0,0.00020273,2]
[315819255,1709191842644,-500.0,0.00020273,2]
[315819257,1709191842652,-500.0,0.00020273,2]
[315819259,1709191842662,-500.0,0.00020273,2]
[315819262,1709191842671,-675.68,0.00020273,2]
[315819264,1709191842680,-810.82,0.00020273,2]
[315819266,1709191842688,-500.0,0.00020273,2]
[315819268,1709191842698,-3869.39,0.00020273,2]
[315819270,1709191842709,-500.0,0.00020273,2]
[315819272,1709191842719,-1379.73,0.00020273,2]
[315819274,1709191842729,-500.0,0.00020273,2]
[315819275,1709191842738,-500.0,0.00020273,2]
[315819277,1709191842747,-500.0,0.00020273,2]
[315819280,1709191842757,-500.0,0.00020273,2]
[315819282,1709191842767,-500.0,0.00020273,2]
[315819284,1709191842776,-500.0,0.00020273,2]
[315819286,1709191842785,-818.15,0.00020273,2]
[315819288,1709191842794,-500.0,0.00020273,2]
[315819289,1709191842804,-3469.29,0.00020273,2]
[315819291,1709191842814,-520.69,0.00020273,2]
[315819293,1709191842823,-265.51,0.00020273,2]
[315819295,1709191842832,-500.0,0.00020273,2]
[315819297,1709191842841,-2154.39,0.00020273,2]
[315819300,1709191842852,-500.0,0.00020273,2]
[315819302,1709191842861,-1000.0,0.00020277,2]
[315819303,1709191842878,-222.91897968,0.00020299,3]
[315819305,1709191842896,-175.0,0.00020299,2]
[315819307,1709191842916,-553.29288081,0.00020299,3]
[315819308,1709191842935,-500.0,0.00020544,2]
[315819309,1709191842956,-542.56,0.00020545,2]
[315819311,1709191842977,-500.0,0.00020545,2]
[315819313,1709191842998,-500.0,0.00020545,2]
[315819314,1709191843020,-500.0,0.00020545,2]
[315819315,1709191843031,-500.0,0.00020545,2]
[315819316,1709191843041,-500.0,0.00020547,2]
[315819317,1709191843050,-500.0,0.00020547,2]
[315819318,1709191843059,-500.0,0.00020547,2]
[315819319,1709191843068,-500.0,0.00020547,2]
[315819320,1709191843154,-500.0,0.00020547,2]
[315819321,1709191843174,-500.0,0.00020547,2]
[315819322,1709191843184,-675.68,0.00020547,2]
[315819323,1709191843193,-810.82,0.00020547,2]
[315819324,1709191843203,-500.0,0.00020547,2]
[315819325,1709191843212,-3869.39,0.00020547,2]
[315819326,1709191843221,-500.0,0.00020547,2]
[315819327,1709191843231,-1379.73,0.00020547,2]
[315819328,1709191843240,-500.0,0.00020547,2]
[315819329,1709191843250,-500.0,0.00020547,2]
[315819330,1709191843260,-500.0,0.00020547,2]
[315819331,1709191843270,-500.0,0.00020547,2]
[315819332,1709191843279,-500.0,0.00020547,2]
[315819333,1709191843288,-500.0,0.00020547,2]
[315819334,1709191843297,-818.15,0.00020547,2]
[315819335,1709191843306,-500.0,0.00020547,2]
[315819336,1709191843316,-3469.29,0.00020547,2]
[315819337,1709191843326,-500.0,0.00020547,2]
[315819338,1709191843335,-2154.39,0.00020547,2]
[315819339,1709191843345,-500.0,0.00020547,2]
[315819340,1709191843354,-1000.0,0.00020554,2]
[315819341,1709191843363,-155.20864054,0.000207,2]
[315819342,1709191843372,-500.0,0.00020819,2]
[315819343,1709191843381,-236.83,0.00020819,2]
[315819344,1709191843390,-500.0,0.00020819,2]
[315819345,1709191843399,-500.0,0.00020819,2]
[315819346,1709191843408,-500.0,0.00020819,2]
[315819347,1709191843417,-500.0,0.00020821,2]
[315819348,1709191843427,-500.0,0.00020821,2]
[315819349,1709191843436,-574.47,0.00020821,2]
[315819350,1709191843445,-500.0,0.00020821,2]
[315819351,1709191843455,-500.0,0.00020821,2]
[315819352,1709191843464,-500.0,0.00020821,2]
[315819353,1709191843473,-675.68,0.00020821,2]
[315819354,1709191843482,-810.82,0.00020821,2]
[315819356,1709191843491,-500.0,0.00020821,2]
[315819357,1709191843500,-3869.39,0.00020821,2]
[315819359,1709191843510,-500.0,0.00020821,2]
[315819360,1709191843521,-1379.73,0.00020821,2]
[315819361,1709191843531,-500.0,0.00020821,2]
[315819362,1709191843540,-500.0,0.00020821,2]
[315819363,1709191843550,-500.0,0.00020821,2]
[315819366,1709191843559,-500.0,0.00020821,2]
[315819369,1709191843568,-500.0,0.00020821,2]
[315819371,1709191843578,-500.0,0.00020821,2]
[315819373,1709191843588,-818.15,0.00020821,2]
[315819375,1709191843599,-500.0,0.00020821,2]
[315819377,1709191843609,-3469.29,0.00020821,2]
[315819379,1709191843620,-200.16,0.00020821,2]
[315819383,1709191843630,-2154.39,0.00020821,2]
[315819386,1709191843639,-500.0,0.00020821,2]
[315819389,1709191843649,-1000.0,0.00020832,2]
[315819391,1709191843659,-234.4999,0.00020895,2]
[315819396,1709191843669,-1891.13927812,0.000209,2]
[315819400,1709191843678,-193.26953703,0.00020977,2]
[315819433,1709191843839,-500.0,0.00019449,2]
[315819437,1709191843852,-238.50130044,0.00020182,2]
[315819439,1709191843861,-301.03371648,0.00020977,2]
[315819481,1709191844169,-4726.34620153,0.00020977,2]
[315819484,1709191844180,-260.84001,0.00020998,2]
[315819486,1709191844189,-155.18622347,0.00020998,2]
[315819488,1709191844198,-273.92034871,0.00020998,2]
[315819490,1709191844208,-155.19597403,0.00020999,2]
[315819492,1709191844217,-302.78902919,0.00020999,2]
[315819494,1709191844227,-500.0,0.00020999,2]
[315819496,1709191844237,-500.0,0.00020999,2]
[315819498,1709191844246,-716.90587339,0.00021,2]
[315819504,1709191844304,-2744.60769951,0.00021,2]
[315819507,1709191844315,-4078.67601698,0.00021,2]
[315819509,1709191844326,-1532.635,0.00021,2]
[315819511,1709191844337,-5625.0,0.00021,2]
[315819649,1709191847064,-804.54,0.00019178,2]
[315819650,1709191847074,-500.0,0.00019178,2]
[315819651,1709191847084,-500.0,0.00019178,2]
[315819652,1709191847094,-804.54,0.00019452,2]
[315819653,1709191847105,-500.0,0.00019452,2]
[315819654,1709191847114,-804.54,0.00019726,2]
[315819655,1709191847124,-500.0,0.00019726,2]
[315819656,1709191847135,-804.54,0.0002,2]
[315819657,1709191847145,-500.0,0.0002,2]
[315819658,1709191847155,-475.53,0.00020263,3]
[315819659,1709191847164,-804.54,0.00020273,2]
[315819660,1709191847174,-133.70999242,0.00020547,2]
[315819661,1709191847185,-670.83000758,0.00020547,2]
[315819662,1709191847195,-804.54,0.00020821,2]
[315819663,1709191847205,-249.91819242,0.0002099,3]
[315819664,1709191847218,-513.30229121,0.0002099,3]
[315819665,1709191847229,-720.75067691,0.0002099,3]
[315819666,1709191847241,-2605.40883946,0.0002099,3]
[315819667,1709191847250,-559.29109954,0.00021,2]
[315819668,1709191847262,-463341.93228142,0.00021,2]
[315819684,1709191869886,217.35457672,0.00017249,2]
[315819689,1709192134223,3000.0,0.000173,2]
[315819690,1709192235916,173.367962,0.00017249,2]
[315819753,1709193032892,-6044.81623237,0.0001812,2]
[315819778,1709193039671,-623.38533298,0.00018119,2]
[315819779,1709193039681,-375.13073653,0.0001812,2]
[315819859,1709193046831,-290.04112182,0.00018119,2]